fUSD/lending_fUSD_20250110
["ID","MTS","AMOUNT","RATE_DAILY","PERIOD"]
[348405583,1736515848780,-500.0,9.998e-05,2]
[348405584,1736515848790,-500.0,9.998e-05,2]
[348405585,1736515848800,-500.0,9.998e-05,2]
[348405586,1736515848810,-500.0,9.998e-05,2]
[348405587,1736515848820,-500.0,9.998e-05,2]
[348405588,1736515848829,-500.0,9.998e-05,2]
[348405589,1736515848845,-555.18,9.998e-05,2]
[348405590,1736515848854,-500.0,9.998e-05,2]
[348405591,1736515848864,-500.0,9.998e-05,2]
[348405592,1736515848874,-1301.17,9.998e-05,2]
[348405593,1736515848884,-500.0,9.998e-05,2]
[348405594,1736515848894,-500.0,9.998e-05,2]
[348405595,1736515848904,-500.0,9.998e-05,2]
[348405596,1736515848914,-500.0,9.998e-05,2]
[348405597,1736515848925,-500.0,9.998e-05,2]
[348405598,1736515848934,-500.0,9.998e-05,2]
[348405599,1736515848944,-500.0,9.998e-05,2]
[348405600,1736515848954,-500.0,9.998e-05,2]
[348405601,1736515848963,-500.0,9.998e-05,2]
[348405602,1736515848973,-500.0,9.998e-05,2]
[348405603,1736515848982,-500.0,9.998e-05,2]
[348405604,1736515848991,-500.0,9.998e-05,2]
[348405605,1736515849001,-500.0,9.998e-05,2]
[348405606,1736515849010,-500.0,9.998e-05,2]
[348405607,1736515849020,-500.0,9.998e-05,2]
[348405608,1736515849029,-500.0,9.998e-05,2]
[348405609,1736515849039,-500.0,9.998e-05,2]
[348405610,1736515849049,-500.0,9.998e-05,2]
[348405611,1736515849059,-500.0,9.998e-05,2]
[348405612,1736515849068,-500.0,9.998e-05,2]
[348405613,1736515849077,-530.78,9.998e-05,2]
[348405614,1736515849094,-500.0,9.998e-05,2]
[348405615,1736515849104,-500.0,9.998e-05,2]
[348405616,1736515849117,-500.0,9.998e-05,2]
[348405617,1736515849127,-500.0,9.998e-05,2]
[348405618,1736515849137,-500.0,9.998e-05,2]
[348405619,1736515849147,-500.0,9.998e-05,2]
[348405620,1736515849159,-500.0,9.998e-05,2]
[348405621,1736515849168,-500.0,9.998e-05,2]
[348405622,1736515849178,-500.0,9.998e-05,2]
[348405623,1736515849188,-500.0,9.998e-05,2]
[348405624,1736515849199,-500.0,9.998e-05,2]
[348405625,1736515849210,-500.0,9.998e-05,2]
[348405626,1736515849219,-500.0,9.998e-05,2]
[348405627,1736515849229,-500.0,9.998e-05,2]
[348405628,1736515849238,-500.0,9.998e-05,2]
[348405629,1736515849248,-500.0,9.998e-05,2]
[348405630,1736515849258,-500.0,9.998e-05,2]
[348405631,1736515849267,-500.0,9.998e-05,2]
[348405632,1736515849277,-500.0,9.998e-05,2]
[348405633,1736515849286,-500.0,9.998e-05,2]
[348405634,1736515849295,-500.0,9.998e-05,2]
[348405635,1736515849304,-500.0,9.998e-05,2]
[348405636,1736515849314,-500.0,9.998e-05,2]
[348405637,1736515849323,-500.0,9.998e-05,2]
[348405638,1736515849338,-500.0,9.998e-05,2]
[348405639,1736515849348,-500.0,9.998e-05,2]
[348405640,1736515849357,-500.0,9.998e-05,2]
[348405641,1736515849366,-500.0,9.998e-05,2]
[348405642,1736515849375,-500.0,9.998e-05,2]
[348405643,1736515849385,-500.0,9.998e-05,2]
[348405644,1736515849394,-500.0,9.998e-05,2]
[348405645,1736515849403,-500.0,9.998e-05,2]
[348405646,1736515849412,-301.45443323,9.998e-05,2]
[348405647,1736515849422,-500.0,9.998e-05,2]
[348405648,1736515849431,-500.0,9.998e-05,2]
[348405649,1736515849440,-500.0,9.998e-05,2]
[348405650,1736515849449,-348.73217868,9.998e-05,2]
[348405651,1736515849458,-500.0,9.998e-05,2]
[348405652,1736515849467,-500.0,9.998e-05,2]
[348405653,1736515849476,-500.0,9.998e-05,2]
[348405654,1736515849485,-500.0,9.998e-05,2]
[348405655,1736515849494,-500.0,9.998e-05,2]
[348405656,1736515849503,-500.0,9.998e-05,2]
[348405657,1736515849513,-500.0,9.998e-05,2]
[348405658,1736515849522,-500.0,9.998e-05,2]
[348405659,1736515849531,-500.0,9.998e-05,2]
[348405660,1736515849540,-500.0,9.998e-05,2]
[348405661,1736515849549,-645.18457993,9.998e-05,2]
[348405662,1736515849558,-500.0,9.998e-05,2]
[348405663,1736515849567,-500.0,9.998e-05,2]
[348405664,1736515849575,-500.0,9.998e-05,2]
[348405665,1736515849588,-500.0,9.998e-05,2]
[348405666,1736515849597,-500.0,9.998e-05,2]
[348405667,1736515849606,-500.0,9.998e-05,2]
[348405668,1736515849615,-500.0,9.998e-05,2]
[348405669,1736515849625,-500.0,9.998e-05,2]
[348405670,1736515849634,-389.91919735,9.998e-05,2]
[348405671,1736515849643,-500.0,9.998e-05,2]
[348405672,1736515849652,-500.0,9.998e-05,2]
[348405673,1736515849661,-500.0,9.998e-05,2]
[348405674,1736515849671,-500.0,9.998e-05,2]
[348405675,1736515849680,-500.0,9.998e-05,2]
[348405676,1736515849691,-500.0,9.998e-05,2]
[348405677,1736515849702,-500.0,9.998e-05,2]
[348405678,1736515849710,-500.0,9.998e-05,2]
[348405679,1736515849720,-500.0,9.998e-05,2]
[348405680,1736515849729,-500.0,9.998e-05,2]
[348405681,1736515849738,-500.0,9.998e-05,2]
[348405682,1736515849748,-500.0,9.998e-05,2]
[348405683,1736515849759,-610.67,9.998e-05,2]
[348405684,1736515849768,-500.0,9.998e-05,2]
[348405685,1736515849777,-500.0,9.998e-05,2]
[348405686,1736515849787,-500.0,9.998e-05,2]
[348405687,1736515849796,-500.0,9.998e-05,2]
[348405688,1736515849805,-500.0,9.998e-05,2]
[348405689,1736515849814,-500.0,9.998e-05,2]
[348405690,1736515849824,-500.0,9.998e-05,2]
[348405691,1736515849837,-500.0,9.998e-05,2]
[348405692,1736515849847,-500.0,9.998e-05,2]
[348405693,1736515849856,-500.0,9.998e-05,2]
[348405694,1736515849865,-500.0,9.998e-05,2]
[348405695,1736515849875,-500.0,9.998e-05,2]
[348405696,1736515849884,-500.0,9.998e-05,2]
[348405697,1736515849894,-506.42272592,9.998e-05,2]
[348405698,1736515849903,-500.0,9.998e-05,2]
[348405699,1736515849913,-500.0,9.998e-05,2]
[348405700,1736515849923,-500.0,9.998e-05,2]
[348405701,1736515849933,-500.0,9.998e-05,2]
[348405702,1736515849942,-500.0,9.998e-05,2]
[348405703,1736515849952,-500.0,9.998e-05,2]
[348405704,1736515849962,-500.0,9.998e-05,2]
[348405705,1736515849971,-500.0,9.998e-05,2]
[348405706,1736515849980,-500.0,9.998e-05,2]
[348405707,1736515849989,-500.0,9.998e-05,2]
[348405708,1736515849999,-440.57066798,9.998e-05,2]
[348405709,1736515850008,-500.0,9.998e-05,2]
[348405710,1736515850019,-500.0,9.998e-05,2]
[348405711,1736515850028,-500.0,9.998e-05,2]
[348405712,1736515850037,-500.0,9.998e-05,2]
[348405713,1736515850046,-500.0,9.998e-05,2]
[348405714,1736515850055,-500.0,9.998e-05,2]
[348405715,1736515850064,-500.0,9.998e-05,2]
[348405716,1736515850073,-500.0,9.998e-05,2]
[348405717,1736515850086,-500.0,9.998e-05,2]
[348405718,1736515850095,-351.64964387,9.998e-05,2]
[348405719,1736515850117,-148.35035613,9.998e-05,2]
[348405720,1736515850126,-500.0,9.998e-05,2]
[348405721,1736515850136,-500.0,9.998e-05,2]
[348405722,1736515850146,-500.0,9.998e-05,2]
[348405723,1736515850160,-500.0,9.998e-05,2]
[348405724,1736515850170,-500.0,9.998e-05,2]
[348405725,1736515850180,-500.0,9.998e-05,2]
[348405726,1736515850190,-500.0,9.998e-05,2]
[348405727,1736515850201,-1285.49,9.998e-05,2]
[348405728,1736515850211,-500.0,9.998e-05,2]
[348405729,1736515850220,-500.0,9.998e-05,2]
[348405730,1736515850229,-500.0,9.998e-05,2]
[348405731,1736515850239,-500.0,9.998e-05,2]
[348405732,1736515850247,-500.0,9.998e-05,2]
[348405733,1736515850257,-500.0,9.998e-05,2]
[348405734,1736515850268,-500.0,9.998e-05,2]
[348405735,1736515850278,-500.0,9.998e-05,2]
[348405736,1736515850293,-526.75,9.998e-05,2]
[348405737,1736515850303,-567.31,9.998e-05,2]
[348405738,1736515850312,-500.0,9.998e-05,2]
[348405739,1736515850321,-500.0,9.998e-05,2]
[348405740,1736515850333,-500.0,9.998e-05,2]
[348405741,1736515850344,-500.0,9.998e-05,2]
[348405742,1736515850352,-506.27399574,9.998e-05,2]
[348405743,1736515850362,-500.0,9.998e-05,2]
[348405744,1736515850371,-500.0,9.998e-05,2]
[348405745,1736515850380,-500.0,9.998e-05,2]
[348405746,1736515850389,-500.0,9.998e-05,2]
[348405747,1736515850398,-500.0,9.998e-05,2]
[348405748,1736515850410,-500.0,9.998e-05,2]
[348405749,1736515850420,-500.0,9.998e-05,2]
[348405750,1736515850430,-587.37,9.998e-05,2]
[348405751,1736515850441,-500.0,9.998e-05,2]
[348405752,1736515850450,-500.0,9.998e-05,2]
[348405753,1736515850460,-555.18,9.998e-05,2]
[348405754,1736515850469,-500.0,9.998e-05,2]
[348405755,1736515850478,-500.0,9.998e-05,2]
[348405756,1736515850488,-500.0,9.998e-05,2]
[348405757,1736515850498,-500.0,9.998e-05,2]
[348405758,1736515850507,-587.24024326,9.998e-05,2]
[348405759,1736515850516,-503.33293654,9.998e-05,2]
[348405760,1736515850527,-500.0,9.998e-05,2]
[348405761,1736515850536,-500.0,9.998e-05,2]
[348405762,1736515850545,-500.0,9.998e-05,2]
[348405763,1736515850555,-500.0,9.998e-05,2]
[348405764,1736515850565,-500.0,9.998e-05,2]
[348405765,1736515850574,-500.0,9.998e-05,2]
[348405766,1736515850588,-500.0,9.998e-05,2]
[348405767,1736515850597,-500.0,9.998e-05,2]
[348405768,1736515850607,-500.0,9.998e-05,2]
[348405769,1736515850616,-500.0,9.998e-05,2]
[348405770,1736515850626,-500.0,9.998e-05,2]
[348405771,1736515850636,-500.0,9.998e-05,2]
[348405772,1736515850645,-500.0,9.998e-05,2]
[348405773,1736515850654,-500.0,9.998e-05,2]
[348405774,1736515850663,-500.0,9.998e-05,2]
[348405775,1736515850672,-500.0,9.998e-05,2]
[348405776,1736515850681,-733.88,9.998e-05,2]
[348405777,1736515850691,-500.0,9.998e-05,2]
[348405778,1736515850700,-500.0,9.998e-05,2]
[348405779,1736515850710,-1137.94,9.998e-05,2]
[348405780,1736515850719,-500.0,9.998e-05,2]
[348405781,1736515850731,-500.0,9.998e-05,2]
[348405782,1736515850745,-500.0,9.998e-05,2]
[348405783,1736515850754,-500.0,9.998e-05,2]
[348405784,1736515850764,-1236.68,9.998e-05,2]
[348405785,1736515850774,-500.0,9.998e-05,2]
[348405786,1736515850783,-500.0,9.998e-05,2]
[348405787,1736515850792,-500.0,9.998e-05,2]
[348405788,1736515850802,-500.0,9.998e-05,2]
[348405789,1736515850811,-1006.37,9.998e-05,2]
[348405790,1736515850819,-500.0,9.998e-05,2]
[348405791,1736515850828,-500.0,9.998e-05,2]
[348405792,1736515850844,-500.0,9.998e-05,2]
[348405793,1736515850853,-500.0,9.998e-05,2]
[348405794,1736515850863,-500.0,9.998e-05,2]
[348405795,1736515850872,-500.0,9.998e-05,2]
[348405796,1736515850881,-422.2168913,9.998e-05,2]
[348405797,1736515850894,-77.7831087,9.998e-05,2]
[348405798,1736515850903,-2190.07,9.998e-05,2]
[348405799,1736515850913,-500.0,9.998e-05,2]
[348405800,1736515850922,-503.30308342,9.998e-05,2]
[348405801,1736515850931,-302.14887364,9.998e-05,2]
[348405802,1736515850940,-500.0,9.998e-05,2]
[348405803,1736515850950,-500.0,9.998e-05,2]
[348405804,1736515850959,-500.0,9.998e-05,2]
[348405805,1736515850968,-500.0,9.998e-05,2]
[348405806,1736515850977,-500.0,9.998e-05,2]
[348405807,1736515850987,-4759.3,9.998e-05,2]
[348405808,1736515850996,-500.0,9.998e-05,2]
[348405809,1736515851005,-500.0,9.998e-05,2]
[348405810,1736515851014,-500.0,9.998e-05,2]
[348405811,1736515851023,-393.67656125,9.998e-05,2]
[348405812,1736515851032,-500.0,9.998e-05,2]
[348405813,1736515851042,-500.0,9.998e-05,2]
[348405814,1736515851051,-500.0,9.998e-05,2]
[348405815,1736515851060,-500.0,9.998e-05,2]
[348405816,1736515851069,-500.0,9.998e-05,2]
[348405817,1736515851078,-505.08595308,9.998e-05,2]
[348405818,1736515851092,-500.0,9.998e-05,2]
[348405819,1736515851102,-500.0,9.998e-05,2]
[348405820,1736515851114,-500.0,9.998e-05,2]
[348405821,1736515851124,-500.0,9.998e-05,2]
[348405822,1736515851134,-500.0,9.998e-05,2]
[348405823,1736515851143,-537.83,9.998e-05,2]
[348405824,1736515851153,-500.0,9.998e-05,2]
[348405825,1736515851164,-500.0,9.998e-05,7]
[348405826,1736515851174,-500.0,9.998e-05,2]
[348405827,1736515851183,-810.46,9.998e-05,2]
[348405828,1736515851194,-500.0,9.998e-05,2]
[348405829,1736515851205,-500.0,9.998e-05,2]
[348405830,1736515851215,-500.0,9.998e-05,2]
[348405831,1736515851224,-500.0,9.998e-05,2]
[348405832,1736515851234,-500.0,9.998e-05,2]
[348405833,1736515851243,-770.54,9.998e-05,2]
[348405834,1736515851252,-500.0,9.998e-05,2]
[348405835,1736515851261,-500.0,9.998e-05,2]
[348405836,1736515851271,-500.0,9.998e-05,2]
[348405837,1736515851280,-500.0,9.998e-05,2]
[348405838,1736515851289,-605.64,9.998e-05,2]
[348405839,1736515851298,-500.0,9.998e-05,2]
[348405840,1736515851307,-500.0,9.998e-05,2]
[348405841,1736515851316,-500.0,9.998e-05,2]
[348405842,1736515851325,-523.54,9.998e-05,2]
[348405843,1736515851339,-500.0,9.998e-05,2]
[348405844,1736515851349,-548.31482211,9.998e-05,2]
[348405845,1736515851359,-555.2797078,9.998e-05,2]
[348405846,1736515851370,-500.0,9.998e-05,2]
[348405847,1736515851380,-500.0,9.998e-05,2]
[348405848,1736515851390,-500.0,9.998e-05,2]
[348405849,1736515851399,-711.92,9.998e-05,2]
[348405850,1736515851409,-500.0,9.998e-05,2]
[348405851,1736515851418,-500.0,9.998e-05,2]
[348405852,1736515851428,-500.0,9.998e-05,2]
[348405853,1736515851438,-500.0,9.998e-05,2]
[348405854,1736515851448,-500.0,9.998e-05,2]
[348405855,1736515851457,-500.0,9.998e-05,2]
[348405856,1736515851467,-557.87,9.998e-05,2]
[348405857,1736515851476,-500.0,9.998e-05,2]
[348405858,1736515851486,-500.0,9.998e-05,2]
[348405859,1736515851495,-500.0,9.998e-05,2]
[348405860,1736515851504,-504.3945345,9.998e-05,2]
[348405861,1736515851513,-596.27,9.998e-05,2]
[348405862,1736515851523,-500.0,9.998e-05,2]
[348405863,1736515851532,-889.05,9.998e-05,2]
[348405864,1736515851542,-500.0,9.998e-05,2]
[348405865,1736515851552,-500.0,9.998e-05,2]
[348405866,1736515851561,-500.0,9.998e-05,2]
[348405867,1736515851570,-500.0,9.998e-05,2]
[348405868,1736515851580,-500.0,9.998e-05,2]
[348405869,1736515851595,-172.28816532,9.998e-05,2]
[348405870,1736515851604,-631.41,9.998e-05,2]
[348405871,1736515851614,-985.26,9.998e-05,2]
[348405872,1736515851624,-500.0,9.998e-05,2]
[348405873,1736515851633,-500.0,9.998e-05,2]
[348405874,1736515851643,-500.0,9.998e-05,2]
[348405875,1736515851653,-506.41337132,9.998e-05,2]
[348405876,1736515851662,-1140.67258345,9.999e-05,3]
[348405877,1736515851672,-1140.67258345,9.999e-05,3]
[348405878,1736515851681,-1140.67258345,9.999e-05,3]
[348405879,1736515851691,-1140.67258346,9.999e-05,3]
[348405880,1736515851700,-1273.75190912,9.999e-05,6]
[348405881,1736515851709,-1026.55,9.999e-05,2]
[348405882,1736515851719,-1299.45,9.999e-05,2]
[348405883,1736515851728,-997.26,9.999e-05,2]
[348405884,1736515851738,-500.0,9.999e-05,2]
[348405885,1736515851747,-1000.0,9.999e-05,2]
[348405886,1736515851757,-817.34,9.999e-05,2]
[348405887,1736515851767,-4808.48,9.999e-05,2]
[348405888,1736515851776,-500.0,9.999e-05,2]
[348405889,1736515851786,-1554.35,9.999e-05,2]
[348405890,1736515851796,-2082.38,9.999e-05,2]
[348405891,1736515851805,-1935.75,9.999e-05,2]
[348405892,1736515851815,-1163.91,9.999e-05,2]
[348405893,1736515851824,-1448.49,9.999e-05,2]
[348405894,1736515851837,-500.0,9.999e-05,2]
[348405895,1736515851846,-951.08,9.999e-05,2]
[348405896,1736515851856,-1976.68,9.999e-05,2]
[348405897,1736515851865,-969.66,9.999e-05,2]
[348405898,1736515851876,-847.98,9.999e-05,2]
[348405899,1736515851886,-1050.81,9.999e-05,2]
[348405900,1736515851895,-500.0,9.999e-05,2]
[348405901,1736515851905,-933.0,9.999e-05,2]
[348405902,1736515851915,-991.0,0.0001,2]
[348405903,1736515851924,-107105.87202602,0.0001,2]
[348405904,1736515851966,-86908.95954517,0.0001,2]
[348405911,1736516087700,708.79,8.219e-05,2]
[348405916,1736516357234,2000.0,8.94e-05,2]
[348405918,1736516549190,667.78983917,8.92e-05,2]
[348405934,1736516849915,5050.0,0.00012,31]
[348406284,1736516990073,673.35,8.219e-05,2]
[348406340,1736517036669,-250.0,8.885e-05,2]
[348406341,1736517036682,-812.55,8.901e-05,2]
[348406342,1736517036691,-8354.19016083,8.92e-05,2]
[348406343,1736517036702,-150.0,8.999e-05,2]
[348406344,1736517036712,-300.0,8.999e-05,2]
[348406345,1736517036721,-500.0,9e-05,2]
[348406346,1736517036730,-500.0,9e-05,2]
[348406347,1736517036739,-500.0,9e-05,2]
[348406348,1736517036748,-500.0,9e-05,2]
[348406349,1736517036758,-500.0,9e-05,2]
[348406350,1736517036767,-500.0,9e-05,2]
[348406351,1736517036777,-500.0,9e-05,2]
[348406352,1736517036786,-500.0,9e-05,2]
[348406353,1736517036796,-500.0,9e-05,2]
[348406354,1736517036805,-500.0,9e-05,2]
[348406355,1736517036814,-500.0,9e-05,2]
[348406356,1736517036824,-500.0,9e-05,2]
[348406357,1736517036834,-500.0,9e-05,2]
[348406358,1736517036844,-500.0,9e-05,2]
[348406359,1736517036854,-610.87,9e-05,2]
[348406360,1736517036864,-500.0,9e-05,2]
[348406361,1736517036873,-500.0,9e-05,2]
[348406362,1736517036883,-500.0,9e-05,2]
[348406363,1736517036892,-500.0,9e-05,2]
[348406364,1736517036901,-500.0,9e-05,2]
[348406365,1736517036911,-500.0,9e-05,2]
[348406366,1736517036920,-500.0,9e-05,2]
[348406367,1736517036929,-395.94,9e-05,2]
[348406368,1736517036938,-500.0,9e-05,2]
[348406369,1736517036948,-1000.0,9.232e-05,2]
[348406370,1736517036957,-2629.231,9.604e-05,2]
[348406371,1736517036967,-162.803,9.604e-05,2]
[348406372,1736517036976,-1389.5895,9.7e-05,2]
[348406373,1736517036986,-1000.0,9.7e-05,2]
[348406374,1736517036996,-7726.59122125,9.744e-05,2]
[348406375,1736517037008,-4659.90285895,9.744e-05,2]
[348406376,1736517037020,-8739.28065605,9.744e-05,2]
[348406377,1736517037031,-425.82308407,9.744e-05,2]
[348406378,1736517037043,-391.35988887,9.744e-05,2]
[348406379,1736517037054,-2176.09119283,9.744e-05,2]
[348406380,1736517037066,-5278.84319654,9.744e-05,2]
[348406381,1736517037075,-500.0,9.799e-05,2]
[348406382,1736517037085,-500.0,9.799e-05,2]
[348406383,1736517037095,-282.64079148,9.799e-05,2]
[348406384,1736517037104,-500.0,9.799e-05,2]
[348406385,1736517037114,-500.0,9.799e-05,2]
[348406386,1736517037123,-649.51,9.799e-05,2]
[348406387,1736517037133,-500.0,9.799e-05,2]
[348406388,1736517037142,-589.67,9.799e-05,2]
[348406389,1736517037152,-544.01,9.799e-05,2]
[348406390,1736517037161,-500.0,9.799e-05,2]
[348406391,1736517037171,-500.0,9.799e-05,2]
[348406392,1736517037181,-512.29,9.799e-05,2]
[348406393,1736517037191,-599.55,9.799e-05,2]
[348406394,1736517037201,-500.0,9.799e-05,2]
[348406395,1736517037210,-500.0,9.799e-05,2]
[348406396,1736517037220,-727.46,9.799e-05,2]
[348406397,1736517037229,-500.0,9.799e-05,2]
[348406398,1736517037238,-500.0,9.799e-05,2]
[348406399,1736517037248,-500.0,9.799e-05,2]
[348406400,1736517037258,-500.0,9.799e-05,2]
[348406401,1736517037267,-748.08,9.799e-05,2]
[348406402,1736517037277,-500.0,9.799e-05,2]
[348406403,1736517037286,-182.57665735,9.799e-05,2]
[348406404,1736517037296,-500.0,9.799e-05,2]
[348406405,1736517037305,-562.91,9.799e-05,2]
[348406406,1736517037315,-500.0,9.799e-05,2]
[348406407,1736517037324,-500.0,9.799e-05,2]
[348406408,1736517037334,-500.0,9.799e-05,2]
[348406409,1736517037344,-500.0,9.799e-05,2]
[348406410,1736517037353,-500.0,9.799e-05,2]
[348406411,1736517037363,-516.04,9.799e-05,2]
[348406412,1736517037373,-706.88,9.799e-05,2]
[348406413,1736517037383,-704.36,9.799e-05,2]
[348406414,1736517037392,-500.0,9.799e-05,2]
[348406415,1736517037402,-500.0,9.799e-05,2]
[348406416,1736517037411,-500.0,9.799e-05,2]
[348406417,1736517037421,-500.0,9.799e-05,2]
[348406418,1736517037431,-308.42743047,9.799e-05,2]
[348406419,1736517037452,-191.57256953,9.799e-05,2]
[348406420,1736517037461,-500.0,9.799e-05,2]
[348406421,1736517037470,-500.0,9.799e-05,2]
[348406422,1736517037480,-614.23,9.799e-05,2]
[348406423,1736517037490,-67.31051047,9.799e-05,2]
[348406424,1736517037521,-432.68948953,9.799e-05,2]
[348406425,1736517037530,-67.31051047,9.799e-05,2]
[348406426,1736517037553,-432.68948953,9.799e-05,2]
[348406427,1736517037563,-500.0,9.799e-05,2]
[348406428,1736517037575,-313.69051047,9.799e-05,2]
[348406429,1736517037587,-186.30948953,9.799e-05,2]
[348406430,1736517037596,-735.88,9.799e-05,2]
[348406431,1736517037605,-500.0,9.799e-05,2]
[348406432,1736517037615,-370.13751047,9.799e-05,2]
[348406433,1736517037626,-129.86248953,9.799e-05,2]
[348406434,1736517037635,-595.02,9.799e-05,2]
[348406435,1736517037644,-500.0,9.799e-05,2]
[348406436,1736517037654,-2.25283027,9.799e-05,2]
[348406437,1736517037672,-497.74716973,9.799e-05,2]
[348406438,1736517037686,-500.0,9.799e-05,2]
[348406439,1736517037696,-2.24483027,9.799e-05,2]
[348406442,1736517038371,-354.95175982,9.799e-05,2]
[348406443,1736517038383,-415.81340991,9.799e-05,2]
[348406444,1736517038393,-500.0,9.799e-05,2]
[348406445,1736517038403,-500.0,9.799e-05,2]
[348406446,1736517038411,-809.91,9.799e-05,2]
[348406447,1736517038420,-500.0,9.799e-05,2]
[348406448,1736517038430,-500.0,9.799e-05,2]
[348406449,1736517038439,-500.0,9.799e-05,2]
[348406450,1736517038449,-929.57,9.799e-05,2]
[348406451,1736517038458,-680.3,9.799e-05,2]
[348406452,1736517038467,-500.0,9.799e-05,2]
[348406453,1736517038476,-500.0,9.799e-05,2]
[348406454,1736517038485,-787.83,9.799e-05,2]
[348406455,1736517038494,-500.0,9.799e-05,2]
[348406456,1736517038503,-500.0,9.799e-05,2]
[348406457,1736517038512,-825.03,9.799e-05,2]
[348406458,1736517038521,-500.0,9.799e-05,2]
[348406459,1736517038531,-500.0,9.799e-05,2]
[348406460,1736517038539,-500.0,9.799e-05,2]
[348406461,1736517038549,-638.76,9.799e-05,2]
[348406462,1736517038557,-500.0,9.799e-05,2]
[348406463,1736517038566,-500.0,9.799e-05,2]
[348406464,1736517038576,-500.0,9.799e-05,2]
[348406465,1736517038585,-774.87,9.799e-05,2]
[348406466,1736517038594,-500.0,9.799e-05,2]
[348406467,1736517038604,-500.0,9.799e-05,2]
[348406468,1736517038617,-500.0,9.799e-05,2]
[348406469,1736517038628,-500.0,9.799e-05,2]
[348406470,1736517038637,-500.0,9.799e-05,2]
[348406471,1736517038647,-500.0,9.799e-05,2]
[348406472,1736517038656,-500.0,9.799e-05,2]
[348406473,1736517038665,-500.0,9.799e-05,2]
[348406474,1736517038680,-500.0,9.799e-05,2]
[348406475,1736517038689,-667.65,9.799e-05,2]
[348406476,1736517038699,-730.25,9.799e-05,2]
[348406477,1736517038709,-590.44,9.799e-05,2]
[348406478,1736517038718,-500.0,9.799e-05,2]
[348406479,1736517038727,-500.0,9.799e-05,2]
[348406480,1736517038739,-500.0,9.799e-05,2]
[348406481,1736517038749,-804.53,9.799e-05,2]
[348406482,1736517038760,-232.25140572,9.799e-05,2]
[348406483,1736517038774,-267.74859428,9.799e-05,2]
[348406484,1736517038783,-500.0,9.799e-05,2]
[348406485,1736517038792,-523.86,9.799e-05,2]
[348406486,1736517038802,-797.16,9.799e-05,2]
[348406487,1736517038811,-500.0,9.799e-05,2]
[348406488,1736517038822,-500.0,9.799e-05,2]
[348406489,1736517038831,-500.0,9.799e-05,2]
[348406490,1736517038840,-500.0,9.799e-05,2]
[348406491,1736517038851,-111.23140572,9.799e-05,2]
[348406492,1736517038864,-652.65859428,9.799e-05,2]
[348406493,1736517038874,-500.0,9.799e-05,2]
[348406494,1736517038884,-500.0,9.799e-05,2]
[348406495,1736517038894,-727.29,9.799e-05,2]
[348406496,1736517038905,-500.0,9.799e-05,2]
[348406497,1736517038915,-223.62240806,9.799e-05,2]
[348406498,1736517038939,-276.37759194,9.799e-05,2]
[348406499,1736517038949,-161.24552455,9.799e-05,2]
[348406500,1736517038959,-500.0,9.799e-05,2]
[348406501,1736517038970,-500.0,9.799e-05,2]
[348406502,1736517038981,-1328.97,9.799e-05,2]
[348406503,1736517038992,-529.64,9.799e-05,2]
[348406504,1736517039001,-500.0,9.799e-05,2]
[348406505,1736517039011,-774.6,9.799e-05,2]
[348406506,1736517039021,-500.0,9.799e-05,2]
[348406507,1736517039033,-500.0,9.799e-05,2]
[348406508,1736517039047,-500.0,9.799e-05,2]
[348406509,1736517039057,-500.0,9.799e-05,2]
[348406510,1736517039066,-500.0,9.799e-05,2]
[348406511,1736517039075,-500.0,9.799e-05,2]
[348406512,1736517039084,-500.0,9.799e-05,2]
[348406513,1736517039093,-535.94,9.799e-05,2]
[348406514,1736517039103,-500.0,9.799e-05,2]